Cogmind - Beta 13 @@@ ROGUE MODE // 2024.06.06 @ 15:12:25 Player: wd Result: Destroyed by G-34 Mercenary with Small Laser Performance ------------- Evolutions (1) 500 Regions Visited (3) 600 Robots Destroyed (25) 125 Value Destroyed (427) 427 Prototype IDs (2) 40 Alien Tech Used (0) 0 Bonus (10) 10 TOTAL SCORE: 1702 Bonus ------- High Alert Combat Kills 10 Cogmind --------- Core Integrity 0/400 Matter 85/400 Energy 100/100 System Corruption 0% Temperature Cool (6) Movement Core (50) Location -9/Materials Parts ------- > --- POWER (1) -------- (None) > --- PROPULSION (3) --- (None) > --- UTILITY (3) ------ Medium Matter Pod > --- WEAPON (2) ------- (None) > --- INVENTORY (5) ---- Light Ion Engine Signal Interpreter Small Laser Shotgun Rocket Launcher Peak State ------------ > --- POWER ------------ (None) > --- PROPULSION ------- Improved Aluminum Leg Improved Aluminum Leg > --- UTILITY ---------- Small Storage Unit Medium Matter Pod Light Armor Plating > --- WEAPON ----------- Shotgun Shotgun > --- INVENTORY -------- Ion Engine Light Ion Engine Improved Aluminum Leg Signal Interpreter Small Laser Shotgun Rocket Launcher [Rating: 12] Favorites ----------- Power Ion Engine Engine Ion Engine Propulsion Improved Aluminum Leg Leg Improved Aluminum Leg Utility Small Storage Unit Storage Small Storage Unit Protection Light Armor Plating Weapon Assault Rifle Energy Gun Small Laser Ballistic Gun Assault Rifle Launcher Grenade Launcher Build | -11 -10 -10 -9 ------- Run | Yrd Mat Min Mat Slots Evolved 2 | . . . 2 Power . | . . . . Propulsion 1 | . . . 1 Utility 1 | . . . 1 Weapon . | . . . . Parts Attached 28 | 6 12 5 5 Power 2 | 1 1 . . Engine 2 | 1 1 . . Core . | . . . . Reactor . | . . . . Propulsion 8 | 2 4 2 . Treads . | . . . . Leg 8 | 2 4 2 . Wheel . | . . . . Hover . | . . . . Flight . | . . . . Utility 4 | 1 . 1 2 Device . | . . . . Storage 2 | 1 . . 1 Processor . | . . . . Hackware . | . . . . Protection 2 | . . 1 1 Artifact . | . . . . Weapon 14 | 2 7 2 3 Energy Gun 1 | . . . 1 Energy Cannon . | . . . . Ballistic Gun 9 | 2 4 1 2 Ballistic Cannon . | . . . . Launcher 4 | . 3 1 . Special Weapon . | . . . . Impact Weapon . | . . . . Slashing Weapon . | . . . . Piercing Weapon . | . . . . Special Melee Weapon . | . . . . Unidentified Prototypes . | . . . . Parts Lost 12 | . . 5 7 Power 1 | . . 1 . Propulsion 3 | . . 1 2 Utility 3 | . . . 3 Weapon 5 | . . 3 2 Highest Loss Streak 6 | . . 2 6 To Critical Strikes . | . . . . Average Slot Usage (%) 73 | . 77 80 53 Engine 8 | . 13 7 . Leg 21 | . 22 22 19 Storage 14 | . 14 14 15 Protection 4 | . . 10 6 Ballistic Gun 11 | . 12 13 9 Launcher 10 | . 14 11 . Naked Turns . | . . . . Heaviest Build 19 | 13 16 19 16 Greatest Support 26 | 20 23 26 26 Greatest Overweight (x) 3 | . 3 3 1 Average Overweight (x) . | . . . . Largest Inventory Capacity 8 | 8 8 8 8 Average Capacity 7 | 6 8 8 7 Most Carried 8 | 3 8 8 8 Average Carried 6 | 1 6 6 6 Final Capacity 8 | 8 8 8 5 Final Carried 8 | 2 8 6 5 Class Distribution -------------------- 100% | Mutant Dominant Class ---------------- Mutant | -10/Materials Mutant | -10/Mines Mutant | -9/Materials Resources | -11 -10 -10 -9 ----------- Run | Yrd Mat Min Mat Matter Collected 438 | 158 131 94 55 Remotely . | . . . . Salvage Created 379 | . 217 107 55 Parts 41 | . 38 2 1 Haulers Intercepted 1 | . 1 . . Recyclers Shooed 1 | . 1 . . Parts Field Recycled . | . . . . Retrieved Matter . | . . . . Parts Self-Destructed . | . . . . Prevented . | . . . . Kills | -11 -10 -10 -9 ------- Run | Yrd Mat Min Mat Combat Hostiles Destroyed 24 | . 12 11 1 Melee 1 | . . 1 . Guns 3 | . . 2 1 AOE 20 | . 12 8 . Classes Destroyed 10 | . 8 1 1 Worker 1 | . 1 . . Builder 3 | . 3 . . Hauler 1 | . 1 . . Mechanic 1 | . 1 . . Operator 1 | . 1 . . Watcher 2 | . 2 . . Swarmer 10 | . 9 1 . Grunt 5 | . 3 2 . Sentry 1 | . . . 1 Assembled 8 | . . 8 . Best Kill Streak 9 | . 9 8 1 Combat Bots Only 8 | . 7 8 1 Max Kills in Single Turn 7 | . 7 5 1 Gunslinging . | . . . . Exploded 4 | . 3 4 . Melee 1 | . . 1 . Uniques/NPCs Destroyed . | . . . . Combat | -11 -10 -10 -9 -------- Run | Yrd Mat Min Mat Hostile Shots Fired 226 | . 14 113 99 Missed 69 | . 5 39 25 Damage Taken 1931 | . 178 750 1003 Core 591 | . 26 157 408 Absorbed by Shields . | . . . . Core Remaining (%) 63 | 100 . 26 . Volleys Fired 46 | . 13 17 16 Largest 2 | . 2 2 2 Hottest 60 | . 60 53 46 Shots Fired 64 | . 23 23 18 Gun 38 | . 3 17 18 Cannon . | . . . . Launcher 26 | . 20 6 . Special . | . . . . Kinetic 24 | . 3 17 4 Thermal 14 | . . . 14 Explosive 26 | . 20 6 . Electromagnetic . | . . . . Robot Hit Streak 7 | . 1 5 7 Robot Miss Streak 5 | . 2 5 3 Penetration Max . | . . . . Secondary Targets . | . . . . Shots Hit Robots 28 | . 2 11 15 Core Hits 60 | . 28 29 3 Critical Kills . | . . . . Critical Parts Destroyed . | . . . . Critical Strikes . | . . . . Melee Attacks . | . . . . Impact . | . . . . Slashing . | . . . . Piercing . | . . . . Sneak Attacks . | . . . . Combat Hostiles . | . . . . Follow-up Attacks . | . . . . Damage Inflicted 1943 | . 936 815 192 Guns 313 | . 14 129 170 Cannons . | . . . . Explosions 1587 | . 922 665 . Melee . | . . . . Ramming 43 | . . 21 22 Kinetic 193 | . 14 129 50 Thermal 120 | . . . 120 Explosive 1559 | . 894 665 . Electromagnetic 28 | . 28 . . Impact . | . . . . Slashing . | . . . . Piercing . | . . . . Highest Corruption . | . . . . Average Corruption . | . . . . Corruption Purged . | . . . . Corruption Blocked . | . . . . Overload Shots . | . . . . Overflow Damage 104 | . 63 41 . Projectiles . | . . . . Explosions 104 | . 63 41 . Melee . | . . . . Knockbacks . | . . . . Impact . | . . . . Kinetic . | . . . . Secondary . | . . . . Self-Inflicted Damage 112 | . 102 10 . Shots 6 | . 5 1 . Rammed . | . . . . Targets Rammed 34 | . . 19 15 Kicked 34 | . . 19 15 Crushed . | . . . . Highest Temperature 19 | . 6 17 19 Average Temperature 5 | . 6 6 4 Received Heat Transfer 480 | . 18 93 369 Siege Activations . | . . . . Robots Corrupted . | . . . . Combat Hostiles . | . . . . Parts Fried . | . . . . Impact Corruptions . | . . . . Robots Melted . | . . . . Combat Hostiles . | . . . . Parts Melted 2 | . . . 2 Heat Transferred 275 | . . . 275 Parts Sabotaged . | . . . . Parts Stolen . | . . . . Parts Stripped . | . . . . Power Chain Reactions . | . . . . Alert | -11 -10 -10 -9 ------- Run | Yrd Mat Min Mat Peak Influence 496 | . 496 236 128 Initial 115 | . . 115 66 Average 180 | . 247 181 95 Maximum Alert Level 2 | . 2 1 . Low Security (%) 58 | 100 29 65 100 Level 1 30 | . 47 34 . Level 2 10 | . 23 . . Level 3 . | . . . . Level 4 . | . . . . Level 5 . | . . . . High Security . | . . . . Max Security . | . . . . Squads Dispatched 1 | . 1 . . Investigation 1 | . 1 . . Extermination . | . . . . Reinforcement . | . . . . Assault . | . . . . Garrison . | . . . . Intercept . | . . . . Searches Triggered . | . . . . Construction Impeded . | . . . . Haulers Reinforced . | . . . . Active Scanning Responses . | . . . . Cargo Convoy Interrupts . | . . . . Stealth | -11 -10 -10 -9 --------- Run | Yrd Mat Min Mat Distress Signals 2 | . . . 2 Communications Jammed . | . . . . Distress Signals . | . . . . Times Spotted 49 | . 16 28 5 Peak Tracking Total 16 | . 3 16 3 Tactical Retreats 2 | . . 2 . Traps | -11 -10 -10 -9 ------- Run | Yrd Mat Min Mat Traps Triggered 3 | . 3 . . Indirectly . | . . . . Trap Hack Attempts . | . . . . Triggered . | . . . . Disarmed . | . . . . Reprogrammed 3 | . 3 . . Reused . | . . . . Traps Extracted . | . . . . Installed . | . . . . Triggered . | . . . . Machines | -11 -10 -10 -9 ---------- Run | Yrd Mat Min Mat Machines Disabled 2 | . 2 . . Max in Single Turn 2 | . 2 . . Machines Repaired . | . . . . Machines Dismantled . | . . . . Machines Sabotaged . | . . . . Overloaded Fab Kills . | . . . . Hacking | -11 -10 -10 -9 --------- Run | Yrd Mat Min Mat Machines Accessed 7 | . 5 . 2 Terminals 7 | . 5 . 2 Fabricators . | . . . . Repair Stations . | . . . . Recycling Units . | . . . . Scanalyzers . | . . . . Garrison Access . | . . . . Total Hacks 31 | . 22 . 9 Successful 18 | . 14 . 4 Failed 13 | . 8 . 5 Catastrophic 1 | . 1 . . Database Lockouts . | . . . . Manual . | . . . . Terminals 31 | . 22 . 9 Fabricators . | . . . . Repair Stations . | . . . . Recycling Units . | . . . . Scanalyzers . | . . . . Garrison Access . | . . . . Terminal Hacks 18 | . 14 . 4 Record 2 | . 2 . . Prototype ID Bank 1 | . . . 1 Emergency Access Points 1 | . 1 . . Unreport Threat 1 | . 1 . . Locate Traps 2 | . 2 . . Reprogram Traps 2 | . 2 . . Dispatch Records 1 | . 1 . . Maintenance Status 1 | . 1 . . Transport Status 1 | . 1 . . Recall Investigation 2 | . 1 . 1 Zone Layout 4 | . 2 . 2 Fabricator Hacks . | . . . . Repair Station Hacks . | . . . . Recycling Unit Hacks . | . . . . Scanalyzer . | . . . . Garrison Access Hacks . | . . . . Unauthorized Hacks . | . . . . Terminals . | . . . . Fabricators . | . . . . Repair Stations . | . . . . Recycling Units . | . . . . Scanalyzers . | . . . . Garrison Access . | . . . . Data Cores Recovered . | . . . . Used . | . . . . Hacking Detections 5 | . 3 . 2 Full Trace Events 1 | . 1 . . Feedback Events . | . . . . Feedback Blocked . | . . . . Robot Schematics Acquired . | . . . . Robots Built . | . . . . Authchips . | . . . . Time . | . . . . Total Robot Build Rating . | . . . . Part Schematics Acquired . | . . . . Parts Built . | . . . . Authchips . | . . . . Time . | . . . . Total Part Build Rating . | . . . . Parts Repaired . | . . . . Time . | . . . . Parts Recycled . | . . . . Recycled Matter . | . . . . Retrieved Matter . | . . . . Retrieved Components . | . . . . Parts Scanalyzed . | . . . . Part Schematics Acquired . | . . . . Parts Damaged . | . . . . Bothacking | -11 -10 -10 -9 ------------ Run | Yrd Mat Min Mat Used RIF Installer . | . . . . Robots Hacked . | . . . . Non-combat . | . . . . Combat . | . . . . Robot Hacks Applied . | . . . . Relay Couplers Released . | . . . . Fabnet Peak Effective % . | . . . . Robots Rewired . | . . . . Allies Hacked . | . . . . Hacks Repelled . | . . . . Allies | -11 -10 -10 -9 -------- Run | Yrd Mat Min Mat Total Allies 3 | . . 3 . Largest Group 3 | . . 3 . Highest-Rated Group 40 | . . 40 . Highest-Rated Ally 16 | . . 16 . Total Orders . | . . . . Ally Attacks 22 | . . 22 . Total Damage 190 | . . 190 . Kills 3 | . . 3 . Allies Corrupted . | . . . . Allies Melted . | . . . . Intel | -11 -10 -10 -9 ------- Run | Yrd Mat Min Mat Robot Analysis Total . | . . . . Derelict Logs Recovered . | . . . . Drone Launches . | . . . . Drone Recoveries . | . . . . Exploration | -11 -10 -10 -9 ------------- Run | Yrd Mat Min Mat Turns Passed 1303 | 87 576 364 276 Spaces Moved 776 | 66 352 222 136 Core 24 | 8 6 10 . Treads . | . . . . Legs 752 | 58 346 212 136 Wheels . | . . . . Hover . | . . . . Flight . | . . . . Fastest Speed 50 | 50 100 120 120 Average Speed 131 | 111 141 126 121 Slowest Speed 200 | 120 200 200 190 Overloaded Moves . | . . . . Propulsion Burnouts . | . . . . Robots Hopped . | . . . . Cave-ins Triggered . | . . . . Exploration Rate (%) 35 | 4 68 56 12 Regions Visited 3 Branch Regions 1 Pre-discovered Areas . | . . . . Known Exits Taken . | . . . . Unknown Exits Taken 3 | 1 1 1 . Scrap Searched . | . . . . Spaces Dug . | . . . . Terrain Destroyed 167 | . 102 65 . Melee . | . . . . Projectile . | . . . . AOE 167 | . 102 65 . Terrain Rammed . | . . . . Walls Destroyed . | . . . . Machines Disabled . | . . . . Actions | -11 -10 -10 -9 --------- Run | Yrd Mat Min Mat Total 980 | 79 410 265 226 Wait 53 | . 4 . 49 Move 773 | 65 351 221 136 Hop . | . . . . Pick Up 35 | 8 20 2 5 Fast Attach . | . . . . Attach 23 | 6 8 5 4 Detach 2 | . 1 1 . Swap 5 | . 4 . 1 Drop 9 | . 9 . . Fire 46 | . 13 17 16 Melee . | . . . . Ram . | . . . . Kick 34 | . . 19 15 Crush . | . . . . Escape Stasis . | . . . . Rewire . | . . . . Trap . | . . . . Miscellaneous . | . . . . Route ------- -11/Scrapyard -10/Materials (discovered 2 exits: *Mat / [*Min]) -10/Mines -9/Materials History --------- Turn | Location | Event 18 | -11/Scrapyard | Discovered new exit (range 14) 88 | -11/Scrapyard | Entered Materials 308 | -10/Materials | Build established: Mutant 381 | -10/Materials | Destroyed 7 combat bots 398 | -10/Materials | Discovered new exit (range 5) 578 | -10/Materials | Discovered new exit (range 10) 664 | -10/Materials | Entered Mines 669 | -10/Mines | Met a Derelict bent on vengeance 832 | -10/Mines | Assisted by bots powering up and referring to "LRC-V3" 848 | -10/Mines | Assembled infested the area 853 | -10/Mines | Assisted by a Guerilla fighting off Assembled 884 | -10/Mines | Destroyed 8 combat bots 907 | -10/Mines | Lost 3 allies 984 | -10/Mines | Discovered new exit (range 9) 985 | -10/Mines | Core integrity fell below 50% 1028 | -10/Mines | Entered Materials 1028 | -9/Materials | Evolved 2 slots: Propulsion x1, Utility x1 1276 | -9/Materials | Core integrity fell below 50% 1300 | -9/Materials | Core integrity fell below 20% 1304 | -9/Materials | Destroyed by G-34 Mercenary with Small Laser Last Messages --------------- Acquired Shotgun. Connecting with Terminal... >>Recall(Investigation) Establishing remote squad link... No tasked investigation squads found. W-16 Scout sends out distress signal. R-06 Scavenger collects Lgt. Treads. Kicked Y-45 Defender out of the way. Kicked Y-45 Defender. Kicked Y-45 Defender out of the way. Kicked Y-45 Defender. Kicked Y-45 Defender out of the way. Imp. Aluminum Leg destroyed. Lgt. Armor Plating destroyed. U-05 Engineer builds a Door. Shotgun destroyed. Imp. Aluminum Leg destroyed. Sml. Storage Unit destroyed. R-06 Scavenger collects Ion Engine. R-06 Scavenger destroyed. Map ----- +----------------------------------------------------+ | ??????????????????????## #????# #??????? | | ???????????????????????# #????# #??????? | | ???????????????????????# #????# #??????? | | ???????????????????????# "T" #????# #??????? | | ???????????????????????# """ #????# #??????? | | ???????????????????????#####+########## #??????? | | ????????????????????????# #??????? | | ????????????????????????# #??????? | | ???????????????########## #??????? | | ??????????????? """ """ # #######+#######??????? | | ??????????????? """ """ # #?# #?????????? | | ??????????????? """ """ # #?# """ #?????????? | | ??????????????? + #?# """ #?????????? | | ??????????????? # #?# """ #?????????? | | ??????????????? # #?# #?????????? | | ??????????????? # #?# #?????????? | | ??????????????? # #?# #?????????? | | ???????????????########## #?# #?????????? | | ???????????????# T ## #?# "T" #?????????? | | ????????????????????? ## ############?????????? | | ????????????????????? ## ## #??????????? | | ????????????????????? ## ## """#??????????? | | ????????????????????? ## Y ## """#??????????? | | ????????????????? "?? # # """#??????????? | | ???????????????? """ # ] # #??????????? | | ???????????????? """ /g@= + """#??????????? | | ???????????????# ^^ # m!* # """#??????????? | | ???????????????# # =%* # """#??????????? | | ???????????????# ??? ####!## #??????????? | | ?????????????????????###??# ###########??????????? | | ??????????????????????????# #????????????????????? | | ???????????????????????#### #????????????????????? | | ?????????????????????###T## #????????????????????? | | ????????????????????? #????????????????????? | | ?????????????????????????? #????????????????????? | | ?????????????????????????? ?????????????????????? | | ??????????????????????????# ?????????????????????? | | ??????????????????????????? ?????????????????????? | | ??????????????????????????? ?????????????????????? | | ??????????????????????????? ?????????????????????? | | ??????????????????????????? ?????????????????????? | | ?????????????????????????????????????????????????? | | ?????????????????????????????????????????????????? | | ?????????????????????????????????????????????????? | | ?????????????????????????????????????????????????? | | ?????????????????????????????????????????????????? | | ?????????????????????????????????????????????????? | | ?????????????????????????????????????????????????? | | ?????????????????????????????????????????????????? | | ?????????????????????????????????????????????????? | +----------------------------------------------------+ Best States ------------- Heat Dissipation 28 Energy Generation 10 Energy Capacity 250 Matter Stores 198 Matter Capacity 400 Sight Range 16 Terrain Scan Density 10 Armor Coverage 150 Evasion (%) 55 Item Schematics ----------------- None Robot Schematics ------------------ None Fabricated ------------ Nothing Alien Tech Used ----------------- None Achievements -------------- I Survived The Infestation Slippery One Challenges ------------ None Game ------ Seed DeepPiercingBoomstick Manual? 0 Play Time 00:19:46 Cumulative 10.3 hours Start 2024.06.06 @ 14:55:01 End 2024.06.06 @ 15:12:25 Sessions 1 Manual Loads 0 Difficulty Rogue Special Mode None Game No. 12 Rogue 12 Adventurer 0 Explorer 0 Win Type - Total 0 Types 0/0/0/0/0/0/0/0/0 Lore% 6 Gallery% 11 Achievement% 14 Wizard Run 0 Options --------- Layout 1 ASCII 0 Keyboard 1 Movement Numpad Keybinds 0 Fullscreen 1 Font 32/SmallcapsGlow Map View 50x35 Zoom Use 0% Tactical HUD 0 Map Filters NONE Filters NONE Steam 1 RUN: 65d903c6-5375-4217-a6bc-2824420ddda3